[Event "Early-Titled-Tuesday-Blitz-January-23-2024"]
[Site "Chess.com"]
[Date "2024.01.23"]
[Round "8"]
[White "TitarovVasiliYouTube"]
[Black "Ducke13"]
[Result "1-0"]
[WhiteElo "2535"]
[BlackElo "2295"]
[TimeControl "180+1"]
[EndTime "9:29:13 PST"]
[Termination "TitarovVasiliYouTube won by resignation"]

1. e4 {[%clk 0:02:57]} 1... c5 {[%clk 0:02:52.8]} 2. Nf3 {[%clk 0:02:53.6]} 2...
d6 {[%clk 0:02:53]} 3. Be2 {[%clk 0:02:53]} 3... Nf6 {[%clk 0:02:51.3]} 4. Nc3
{[%clk 0:02:34.4]} 4... a6 {[%clk 0:02:50.5]} 5. O-O {[%clk 0:02:27.1]} 5... e5
{[%clk 0:02:32.8]} 6. a4 {[%clk 0:02:16.2]} 6... b6 {[%clk 0:02:31]} 7. Bc4
{[%clk 0:02:14.2]} 7... Be7 {[%clk 0:02:23.6]} 8. d3 {[%clk 0:02:13.2]} 8... O-O
{[%clk 0:02:22.9]} 9. Bg5 {[%clk 0:02:12.5]} 9... Nbd7 {[%clk 0:02:18.8]} 10.
Re1 {[%clk 0:01:49.7]} 10... Ra7 {[%clk 0:02:17.6]} 11. Nd2 {[%clk 0:01:48]}
11... h6 {[%clk 0:02:17.2]} 12. Bh4 {[%clk 0:01:47]} 12... Nh7 {[%clk
0:02:12.1]} 13. Bxe7 {[%clk 0:01:43.4]} 13... Qxe7 {[%clk 0:02:13]} 14. Nd5
{[%clk 0:01:43.3]} 14... Qd8 {[%clk 0:02:12]} 15. Nf1 {[%clk 0:01:44.2]} 15...
Kh8 {[%clk 0:02:11.6]} 16. Nfe3 {[%clk 0:01:43.5]} 16... g6 {[%clk 0:02:09.7]}
17. c3 {[%clk 0:01:37.7]} 17... Kg7 {[%clk 0:02:07.6]} 18. b4 {[%clk 0:01:34.6]}
18... f5 {[%clk 0:02:05.3]} 19. exf5 {[%clk 0:01:26]} 19... gxf5 {[%clk
0:02:03.9]} 20. Qh5 {[%clk 0:01:26.6]} 20... Qg5 {[%clk 0:02:01.8]} 21. Qxg5+
{[%clk 0:01:24.3]} 21... hxg5 {[%clk 0:01:58.4]} 22. Ne7 {[%clk 0:01:15.5]}
22... f4 {[%clk 0:01:50.4]} 23. N3f5+ {[%clk 0:01:12.6]} 23... Kf6 {[%clk
0:01:46.3]} 24. Nxc8 {[%clk 0:01:12.6]} 24... Rxc8 {[%clk 0:01:28.2]} 25. Nxd6
{[%clk 0:01:13]} 25... Rh8 {[%clk 0:01:11.8]} 26. Ne4+ {[%clk 0:01:04.9]} 26...
Kf5 {[%clk 0:01:10.5]} 27. bxc5 {[%clk 0:01:02]} 27... bxc5 {[%clk 0:01:10.6]}
28. Rab1 {[%clk 0:00:57.4]} 28... Nhf6 {[%clk 0:01:10.2]} 29. a5 {[%clk
0:00:44.6]} 29... g4 {[%clk 0:01:09.4]} 30. Nd6+ {[%clk 0:00:34.3]} 30... Kg6
{[%clk 0:01:03.3]} 31. Be6 {[%clk 0:00:31.6]} 31... Nf8 {[%clk 0:00:50.1]} 32.
Bf5+ {[%clk 0:00:29.3]} 32... Kg5 {[%clk 0:00:50.4]} 33. Be4 {[%clk 0:00:29.5]}
33... f3 {[%clk 0:00:32.7]} 34. gxf3 {[%clk 0:00:28.1]} 34... gxf3 {[%clk
0:00:32.7]} 35. Bxf3 {[%clk 0:00:29]} 35... Kf4 {[%clk 0:00:27.2]} 36. Bg2
{[%clk 0:00:27.4]} 36... Rg7 {[%clk 0:00:25.4]} 37. Re3 {[%clk 0:00:20.2]} 37...
Ng4 {[%clk 0:00:08.5]} 38. Rf3+ {[%clk 0:00:20.4]} 38... Kg5 {[%clk 0:00:09]}
39. h3 {[%clk 0:00:18.3]} 39... Nf6 {[%clk 0:00:05.4]} 40. Re1 {[%clk
0:00:17.5]} 40... Ng6 {[%clk 0:00:04.8]} 41. Rg3+ {[%clk 0:00:17.2]} 41... Kh6
{[%clk 0:00:04.6]} 42. Nf5+ {[%clk 0:00:17.2]} 42... Kh7 {[%clk 0:00:04.3]} 43.
Nxg7 {[%clk 0:00:18.1]} 43... Kxg7 {[%clk 0:00:04.5]} 44. Rxe5 {[%clk 0:00:18]}
44... Kf7 {[%clk 0:00:04.6]} 45. Rxc5 {[%clk 0:00:17.9]} 45... Re8 {[%clk
0:00:03.6]} 46. Bd5+ {[%clk 0:00:17.1]} 46... Nxd5 {[%clk 0:00:03.3]} 47. Rxd5
{[%clk 0:00:18]} 47... Re1+ {[%clk 0:00:03.2]} 48. Kh2 {[%clk 0:00:18.7]} 48...
Nf4 {[%clk 0:00:03.5]} 49. Rf5+ {[%clk 0:00:19.1]} 49... Ke6 {[%clk 0:00:03.5]}
50. Rxf4 {[%clk 0:00:20]} 50... Re2 {[%clk 0:00:04.3]} 51. Re4+ {[%clk
0:00:20.9]} 51... Rxe4 {[%clk 0:00:04.7]} 52. dxe4 {[%clk 0:00:21.8]} 52... Ke5
{[%clk 0:00:05.6]} 53. Kg2 {[%clk 0:00:22.7]} 53... Kxe4 {[%clk 0:00:06.5]} 54.
Re3+ {[%clk 0:00:22.3]} 54... Kf5 {[%clk 0:00:06.7]} 55. Rg3 {[%clk 0:00:22.6]}
55... Kf6 {[%clk 0:00:07]} 56. h4 {[%clk 0:00:21.2]} 56... Kf5 {[%clk
0:00:07.9]} 57. h5 {[%clk 0:00:22.1]} 57... Ke5 {[%clk 0:00:08.8]} 58. h6 {[%clk
0:00:23]} 58... Kd5 {[%clk 0:00:09.7]} 59. h7 {[%clk 0:00:23.9]} 59... Kc5
{[%clk 0:00:10.6]} 60. h8=N {[%clk 0:00:16.1]} 60... Kc4 {[%clk 0:00:11.5]} 61.
Rg6 {[%clk 0:00:14.8]} 61... Kb3 {[%clk 0:00:12.4]} 62. Rxa6 {[%clk 0:00:15.7]}
62... Ka4 {[%clk 0:00:13.2]} 63. Rb6 {[%clk 0:00:15.7]} 63... Kxa5 {[%clk
0:00:13.6]} 64. Rb4 {[%clk 0:00:16.4]} 64... Ka6 {[%clk 0:00:13.7]} 65. f4
{[%clk 0:00:17.3]} 65... Ka5 {[%clk 0:00:14.6]} 66. f5 {[%clk 0:00:18.2]} 66...
Ka6 {[%clk 0:00:15.3]} 67. f6 {[%clk 0:00:19.1]} 67... Ka5 {[%clk 0:00:16]} 68.
Kg3 {[%clk 0:00:19.7]} 68... Ka6 {[%clk 0:00:16.9]} 69. Kf3 {[%clk 0:00:20.4]}
69... Ka5 {[%clk 0:00:17.8]} 70. Kg4 {[%clk 0:00:21.3]} 70... Ka6 {[%clk
0:00:18.7]} 71. Kg5 {[%clk 0:00:21]} 71... Ka5 {[%clk 0:00:19.6]} 72. Kg6 {[%clk
0:00:21.9]} 72... Ka6 {[%clk 0:00:20.5]} 1-0

[Event "Early-Titled-Tuesday-Blitz-January-23-2024"]
[Site "Chess.com"]
[Date "2024.01.23"]
[Round "8"]
[White "RandomNoob04"]
[Black "GoValya"]
[Result "1-0"]
[WhiteElo "2578"]
[BlackElo "2323"]
[TimeControl "180+1"]
[EndTime "9:29:15 PST"]
[Termination "RandomNoob04 won by resignation"]

1. e4 {[%clk 0:03:00.9]} 1... e6 {[%clk 0:02:59.7]} 2. d4 {[%clk 0:03:01.5]}
2... d5 {[%clk 0:03:00]} 3. Nd2 {[%clk 0:02:58.8]} 3... c5 {[%clk 0:03:00]} 4.
exd5 {[%clk 0:02:58.4]} 4... exd5 {[%clk 0:03:00.2]} 5. Ngf3 {[%clk 0:02:58.5]}
5... Nf6 {[%clk 0:03:00.4]} 6. Bb5+ {[%clk 0:02:58]} 6... Nc6 {[%clk 0:03:00.8]}
7. O-O {[%clk 0:02:57.6]} 7... Be7 {[%clk 0:03:01]} 8. dxc5 {[%clk 0:02:57.5]}
8... O-O {[%clk 0:03:01.3]} 9. Nb3 {[%clk 0:02:57.3]} 9... a6 {[%clk 0:03:01.2]}
10. Bd3 {[%clk 0:02:55.7]} 10... h6 {[%clk 0:03:01.5]} 11. h3 {[%clk 0:02:55.9]}
11... Be6 {[%clk 0:02:59.4]} 12. c3 {[%clk 0:02:47.8]} 12... Rc8 {[%clk
0:02:59.3]} 13. Be3 {[%clk 0:02:47.6]} 13... a5 {[%clk 0:02:52.1]} 14. a4 {[%clk
0:02:42.7]} 14... Ne4 {[%clk 0:02:48.8]} 15. Qc2 {[%clk 0:02:29.9]} 15... f5
{[%clk 0:02:46.7]} 16. Nfd4 {[%clk 0:02:23.4]} 16... Nxd4 {[%clk 0:02:36.9]} 17.
Nxd4 {[%clk 0:02:16.1]} 17... Bd7 {[%clk 0:02:30.9]} 18. b4 {[%clk 0:02:11.3]}
18... f4 {[%clk 0:02:23.6]} 19. Qb3 {[%clk 0:01:50.4]} 19... Kh8 {[%clk
0:02:12.1]} 20. Bc1 {[%clk 0:01:34.5]} 20... axb4 {[%clk 0:02:04.4]} 21. cxb4
{[%clk 0:01:32.8]} 21... Bf6 {[%clk 0:01:39.3]} 22. Qxd5 {[%clk 0:01:17]} 22...
Bc6 {[%clk 0:01:24]} 23. Qxd8 {[%clk 0:01:15]} 23... Rfxd8 {[%clk 0:01:20.2]}
24. Bxe4 {[%clk 0:00:42.4]} 24... Bxe4 {[%clk 0:01:09.8]} 25. Nb3 {[%clk
0:00:42.4]} 25... Bxa1 {[%clk 0:00:55.5]} 26. Nxa1 {[%clk 0:00:43.3]} 26... Rd4
{[%clk 0:00:51.9]} 27. Bxf4 {[%clk 0:00:27.5]} 27... Rxb4 {[%clk 0:00:47.3]} 28.
Be3 {[%clk 0:00:27.8]} 28... Rb1 {[%clk 0:00:40.8]} 29. Rxb1 {[%clk 0:00:15.5]}
29... Bxb1 {[%clk 0:00:41.7]} 30. Kf1 {[%clk 0:00:12.1]} 30... Bd3+ {[%clk
0:00:38.4]} 31. Ke1 {[%clk 0:00:12]} 31... Bc4 {[%clk 0:00:37.2]} 32. Kd2 {[%clk
0:00:11.9]} 32... Bd5 {[%clk 0:00:37.1]} 33. f3 {[%clk 0:00:11.8]} 33... Kg8
{[%clk 0:00:37.1]} 34. Kc3 {[%clk 0:00:11.5]} 34... b6 {[%clk 0:00:35.6]} 35.
Kb4 {[%clk 0:00:08.5]} 35... bxc5+ {[%clk 0:00:34.5]} 36. Bxc5 {[%clk
0:00:09.4]} 36... Kf7 {[%clk 0:00:34.5]} 37. a5 {[%clk 0:00:09.7]} 37... Ra8
{[%clk 0:00:31.8]} 38. Nc2 {[%clk 0:00:10.1]} 38... Rb8+ {[%clk 0:00:29]} 39.
Bb6 {[%clk 0:00:10.1]} 39... Ke6 {[%clk 0:00:25]} 40. Ne3 {[%clk 0:00:10.8]}
40... Bc6 {[%clk 0:00:22.1]} 41. Nc4 {[%clk 0:00:07.5]} 41... Kd5 {[%clk
0:00:20.5]} 42. a6 {[%clk 0:00:06.4]} 42... Ra8 {[%clk 0:00:17.4]} 43. a7 {[%clk
0:00:06.5]} 43... Bb7 {[%clk 0:00:16.8]} 44. Be3 {[%clk 0:00:06.1]} 44... Bc6
{[%clk 0:00:16.4]} 45. Nb6+ {[%clk 0:00:06.4]} 45... Kd6 {[%clk 0:00:15.9]} 46.
Nxa8 {[%clk 0:00:07.3]} 46... Bxa8 {[%clk 0:00:16.7]} 47. Bd4 {[%clk 0:00:05.9]}
47... g6 {[%clk 0:00:16.4]} 48. Bg7 {[%clk 0:00:04.5]} 48... h5 {[%clk
0:00:16.9]} 49. Kc3 {[%clk 0:00:05.4]} 49... Ke6 {[%clk 0:00:16.7]} 50. Kd2
{[%clk 0:00:06]} 50... Kf5 {[%clk 0:00:17.1]} 51. Ke3 {[%clk 0:00:06.2]} 51...
g5 {[%clk 0:00:17.5]} 52. g4+ {[%clk 0:00:06.4]} 52... hxg4 {[%clk 0:00:17.7]}
53. hxg4+ {[%clk 0:00:07.3]} 53... Kg6 {[%clk 0:00:18]} 54. Bd4 {[%clk
0:00:07.5]} 54... Bb7 {[%clk 0:00:17.2]} 55. Bb6 {[%clk 0:00:07.9]} 55... Ba8
{[%clk 0:00:17.5]} 56. Bd8 {[%clk 0:00:08.5]} 56... Bb7 {[%clk 0:00:17.6]} 57.
f4 {[%clk 0:00:08.7]} 57... gxf4+ {[%clk 0:00:17.5]} 58. Kxf4 {[%clk 0:00:09.6]}
58... Ba8 {[%clk 0:00:17.5]} 59. g5 {[%clk 0:00:10.2]} 59... Bb7 {[%clk
0:00:18]} 60. Ke5 {[%clk 0:00:10.8]} 60... Ba8 {[%clk 0:00:18.5]} 61. Kd6 {[%clk
0:00:11.4]} 61... Kf7 {[%clk 0:00:18.3]} 62. Kc7 {[%clk 0:00:12]} 62... Be4
{[%clk 0:00:18.3]} 63. Kb8 {[%clk 0:00:11.4]} 63... Ke8 {[%clk 0:00:18.3]} 64.
Bf6 {[%clk 0:00:12.1]} 64... Kf7 {[%clk 0:00:18.4]} 65. a8=Q {[%clk 0:00:13]}
65... Bxa8 {[%clk 0:00:18.7]} 66. Kxa8 {[%clk 0:00:13.9]} 66... Kg6 {[%clk
0:00:19]} 67. Kb7 {[%clk 0:00:14.8]} 67... Kf7 {[%clk 0:00:18.8]} 68. Kc6 {[%clk
0:00:15.7]} 68... Kg6 {[%clk 0:00:19.2]} 69. Kd6 {[%clk 0:00:15.8]} 69... Kf7
{[%clk 0:00:19]} 70. Kd7 {[%clk 0:00:16.3]} 70... Kg6 {[%clk 0:00:19.4]} 71. Ke6
{[%clk 0:00:17.2]} 71... Kh7 {[%clk 0:00:18.6]} 72. Kf5 {[%clk 0:00:16.9]} 72...
Kg8 {[%clk 0:00:18.7]} 73. g6 {[%clk 0:00:17.3]} 73... Kf8 {[%clk 0:00:19]} 74.
Kg5 {[%clk 0:00:16.3]} 74... Kg8 {[%clk 0:00:19.2]} 75. Kh6 {[%clk 0:00:16.6]}
75... Kf8 {[%clk 0:00:18.4]} 76. Kh7 {[%clk 0:00:16.6]} 1-0

[Event "Early-Titled-Tuesday-Blitz-January-23-2024"]
[Site "Chess.com"]
[Date "2024.01.23"]
[Round "8"]
[White "sonicdravise"]
[Black "tusplingher"]
[Result "0-1"]
[WhiteElo "2621"]
[BlackElo "2503"]
[TimeControl "180+1"]
[EndTime "9:29:17 PST"]
[Termination "tusplingher won by checkmate"]

1. d4 {[%clk 0:03:00.9]} 1... Nf6 {[%clk 0:02:56.1]} 2. c4 {[%clk 0:03:01.4]}
2... c5 {[%clk 0:02:53.8]} 3. d5 {[%clk 0:03:01.4]} 3... b5 {[%clk 0:02:53.6]}
4. cxb5 {[%clk 0:03:02]} 4... a6 {[%clk 0:02:53.7]} 5. bxa6 {[%clk 0:03:01.1]}
5... g6 {[%clk 0:02:54.2]} 6. Nc3 {[%clk 0:03:01.3]} 6... Bg7 {[%clk 0:02:52.4]}
7. a7 {[%clk 0:02:59.4]} 7... Rxa7 {[%clk 0:02:52]} 8. e4 {[%clk 0:02:59.4]}
8... d6 {[%clk 0:02:48.2]} 9. Nf3 {[%clk 0:02:59.5]} 9... O-O {[%clk 0:02:47.2]}
10. Be2 {[%clk 0:02:58.3]} 10... Ba6 {[%clk 0:02:46.8]} 11. O-O {[%clk
0:02:57.3]} 11... Bxe2 {[%clk 0:02:46.1]} 12. Qxe2 {[%clk 0:02:57.6]} 12... Qa5
{[%clk 0:02:37.9]} 13. Bd2 {[%clk 0:02:56.9]} 13... Qa6 {[%clk 0:02:36.9]} 14.
Qd1 {[%clk 0:02:20.2]} 14... Nbd7 {[%clk 0:02:30.5]} 15. Rb1 {[%clk 0:02:14.3]}
15... Rb8 {[%clk 0:02:25.9]} 16. b3 {[%clk 0:02:13.9]} 16... Qd3 {[%clk
0:02:14.9]} 17. Re1 {[%clk 0:02:11.4]} 17... Ng4 {[%clk 0:02:08.5]} 18. Rc1
{[%clk 0:01:59.6]} 18... Nde5 {[%clk 0:01:46.4]} 19. Nxe5 {[%clk 0:01:57.8]}
19... Bxe5 {[%clk 0:01:46.2]} 20. Qxg4 {[%clk 0:01:29.3]} 20... Qxd2 {[%clk
0:01:45.1]} 21. Qf3 {[%clk 0:01:23.6]} 21... Bxc3 {[%clk 0:01:27.5]} 22. Qxc3
{[%clk 0:01:23.1]} 22... Rxa2 {[%clk 0:01:25]} 23. Qxd2 {[%clk 0:01:11.9]} 23...
Rxd2 {[%clk 0:01:24.9]} 24. Rc3 {[%clk 0:01:11]} 24... Rb2 {[%clk 0:01:19]} 25.
g3 {[%clk 0:00:55.5]} 25... R8xb3 {[%clk 0:01:14.9]} 26. Rxb3 {[%clk 0:00:53.9]}
26... Rxb3 {[%clk 0:01:15.8]} 27. Ra1 {[%clk 0:00:52]} 27... Kg7 {[%clk
0:01:14.2]} 28. Kf1 {[%clk 0:00:48.9]} 28... Rb2 {[%clk 0:01:09.4]} 29. Ra7
{[%clk 0:00:43.2]} 29... Kf6 {[%clk 0:01:09.1]} 30. Rc7 {[%clk 0:00:39.1]} 30...
g5 {[%clk 0:01:07.8]} 31. h3 {[%clk 0:00:37.9]} 31... h5 {[%clk 0:01:06.7]} 32.
Kg2 {[%clk 0:00:35.3]} 32... g4 {[%clk 0:01:04.3]} 33. hxg4 {[%clk 0:00:27.7]}
33... hxg4 {[%clk 0:01:03.5]} 34. Kf1 {[%clk 0:00:28.3]} 34... Rb4 {[%clk
0:00:59]} 35. f3 {[%clk 0:00:24.4]} 35... gxf3 {[%clk 0:00:56.8]} 36. Kf2 {[%clk
0:00:25]} 36... Rxe4 {[%clk 0:00:56.1]} 37. Kxf3 {[%clk 0:00:25.2]} 37... Rd4
{[%clk 0:00:55.9]} 38. Ra7 {[%clk 0:00:24.9]} 38... Rxd5 {[%clk 0:00:56.1]} 39.
Ke4 {[%clk 0:00:25.2]} 39... Rd4+ {[%clk 0:00:55.4]} 40. Ke3 {[%clk 0:00:25.4]}
40... Rb4 {[%clk 0:00:51.2]} 41. Ra1 {[%clk 0:00:25.5]} 41... Ke5 {[%clk
0:00:48.5]} 42. Rf1 {[%clk 0:00:24.9]} 42... Rb3+ {[%clk 0:00:46.6]} 43. Kf2
{[%clk 0:00:25.6]} 43... d5 {[%clk 0:00:43.7]} 44. Re1+ {[%clk 0:00:25.2]} 44...
Kd6 {[%clk 0:00:42.1]} 45. Kg2 {[%clk 0:00:25.7]} 45... c4 {[%clk 0:00:42.1]}
46. Rf1 {[%clk 0:00:25.5]} 46... f6 {[%clk 0:00:41.8]} 47. Rd1 {[%clk
0:00:25.6]} 47... e5 {[%clk 0:00:41.3]} 48. Kh3 {[%clk 0:00:26.1]} 48... d4
{[%clk 0:00:41.4]} 49. Kg4 {[%clk 0:00:26.1]} 49... c3 {[%clk 0:00:42]} 50. Kf5
{[%clk 0:00:26.5]} 50... c2 {[%clk 0:00:42.5]} 51. Rc1 {[%clk 0:00:26.9]} 51...
d3 {[%clk 0:00:43]} 52. Kxf6 {[%clk 0:00:27.6]} 52... Rc3 {[%clk 0:00:43]} 53.
g4 {[%clk 0:00:27.6]} 53... d2 {[%clk 0:00:43.3]} 54. Ra1 {[%clk 0:00:26.6]}
54... d1=Q {[%clk 0:00:41.7]} 55. Ra6+ {[%clk 0:00:27.5]} 55... Kd5 {[%clk
0:00:41]} 56. g5 {[%clk 0:00:28.1]} 56... c1=Q {[%clk 0:00:40.1]} 57. Ra5+
{[%clk 0:00:27.3]} 57... Rc5 {[%clk 0:00:39.8]} 58. g6 {[%clk 0:00:26]} 58...
Qf4+ {[%clk 0:00:38.3]} 59. Kg7 {[%clk 0:00:25.4]} 59... Rxa5 {[%clk 0:00:35.8]}
60. Kh8 {[%clk 0:00:25.3]} 60... Qh6+ {[%clk 0:00:35.3]} 61. Kg8 {[%clk
0:00:25.3]} 61... Qg7+ {[%clk 0:00:32.4]} 62. Kxg7 {[%clk 0:00:25]} 62... Ra7+
{[%clk 0:00:29]} 63. Kh8 {[%clk 0:00:25.3]} 63... Rg7 {[%clk 0:00:28.9]} 64.
Kxg7 {[%clk 0:00:25.2]} 64... Qg4 {[%clk 0:00:24]} 65. Kf7 {[%clk 0:00:23.8]}
65... Qxg6+ {[%clk 0:00:22.9]} 66. Kxg6 {[%clk 0:00:24.7]} 66... e4 {[%clk
0:00:22.7]} 67. Kf5 {[%clk 0:00:25.6]} 67... e3 {[%clk 0:00:23.6]} 68. Kf4
{[%clk 0:00:26.4]} 68... e2 {[%clk 0:00:24.2]} 69. Kg3 {[%clk 0:00:27.3]} 69...
e1=Q+ {[%clk 0:00:24.9]} 70. Kf3 {[%clk 0:00:28.2]} 70... Kd4 {[%clk 0:00:21.8]}
71. Kf4 {[%clk 0:00:28.4]} 71... Qe5+ {[%clk 0:00:20.1]} 72. Kf3 {[%clk
0:00:28.4]} 72... Qe4+ {[%clk 0:00:18.9]} 73. Kf2 {[%clk 0:00:29.1]} 73... Qe3+
{[%clk 0:00:18.4]} 74. Kg2 {[%clk 0:00:29.9]} 74... Ke4 {[%clk 0:00:17.8]} 75.
Kh2 {[%clk 0:00:30.7]} 75... Qf3 {[%clk 0:00:15.9]} 76. Kg1 {[%clk 0:00:30.7]}
76... Qe2 {[%clk 0:00:16.1]} 77. Kh1 {[%clk 0:00:31.5]} 77... Kf3 {[%clk
0:00:16.7]} 78. Kg1 {[%clk 0:00:32.4]} 78... Qg2# {[%clk 0:00:12.3]} 0-1

[Event "Early-Titled-Tuesday-Blitz-January-23-2024"]
[Site "Chess.com"]
[Date "2024.01.23"]
[Round "8"]
[White "GMJustin"]
[Black "ChessBliss09"]
[Result "1-0"]
[WhiteElo "2338"]
[BlackElo "2124"]
[TimeControl "180+1"]
[EndTime "9:29:17 PST"]
[Termination "GMJustin won by checkmate"]

1. e4 {[%clk 0:02:43]} 1... e6 {[%clk 0:02:57.7]} 2. d4 {[%clk 0:02:41.3]} 2...
d5 {[%clk 0:02:58.3]} 3. Nc3 {[%clk 0:02:40.7]} 3... dxe4 {[%clk 0:02:58.3]} 4.
Nxe4 {[%clk 0:02:40.4]} 4... Nd7 {[%clk 0:02:59.2]} 5. Be3 {[%clk 0:02:25.2]}
5... Ngf6 {[%clk 0:02:57.8]} 6. Nxf6+ {[%clk 0:02:24.7]} 6... Nxf6 {[%clk
0:02:58.7]} 7. Nf3 {[%clk 0:02:23.7]} 7... Bd6 {[%clk 0:02:55.4]} 8. Bd3 {[%clk
0:02:21.9]} 8... O-O {[%clk 0:02:53.4]} 9. Qe2 {[%clk 0:02:21.8]} 9... c5 {[%clk
0:02:41.8]} 10. dxc5 {[%clk 0:02:16.6]} 10... Qa5+ {[%clk 0:02:38.9]} 11. c3
{[%clk 0:02:12.6]} 11... Bxc5 {[%clk 0:02:30.5]} 12. b4 {[%clk 0:01:58.1]} 12...
Bxb4 {[%clk 0:02:30.6]} 13. cxb4 {[%clk 0:01:56.9]} 13... Qxb4+ {[%clk
0:02:31.5]} 14. Bd2 {[%clk 0:01:52.5]} 14... Qd6 {[%clk 0:02:20.8]} 15. O-O
{[%clk 0:01:47.7]} 15... Rd8 {[%clk 0:02:17.7]} 16. Ne5 {[%clk 0:01:37.1]} 16...
b6 {[%clk 0:02:09.6]} 17. Rfd1 {[%clk 0:01:28]} 17... Bb7 {[%clk 0:02:08.4]} 18.
Bg5 {[%clk 0:01:24.7]} 18... Qb4 {[%clk 0:01:36]} 19. Bxf6 {[%clk 0:00:58.6]}
19... gxf6 {[%clk 0:01:36.9]} 20. Qg4+ {[%clk 0:00:51]} 20... Qxg4 {[%clk
0:01:35.7]} 21. Nxg4 {[%clk 0:00:51.7]} 21... f5 {[%clk 0:01:33.9]} 22. Ne3
{[%clk 0:00:47.5]} 22... Rd7 {[%clk 0:01:23.9]} 23. Bb5 {[%clk 0:00:37.2]} 23...
Rc7 {[%clk 0:01:20.6]} 24. Rac1 {[%clk 0:00:36.6]} 24... Rac8 {[%clk 0:01:20.1]}
25. Rd8+ {[%clk 0:00:34.7]} 25... Rxd8 {[%clk 0:01:17.9]} 26. Rxc7 {[%clk
0:00:34]} 26... f4 {[%clk 0:01:17.7]} 27. Rxb7 {[%clk 0:00:30.2]} 27... fxe3
{[%clk 0:01:16.8]} 28. fxe3 {[%clk 0:00:30.5]} 28... Rd1+ {[%clk 0:01:13.1]} 29.
Bf1 {[%clk 0:00:29.9]} 29... a5 {[%clk 0:00:52.1]} 30. Rxb6 {[%clk 0:00:29.1]}
30... Rd2 {[%clk 0:00:51.4]} 31. a4 {[%clk 0:00:27.7]} 31... Ra2 {[%clk
0:00:42.1]} 32. Bb5 {[%clk 0:00:27.2]} 32... Kg7 {[%clk 0:00:38.6]} 33. Ra6
{[%clk 0:00:26.3]} 33... Kf6 {[%clk 0:00:38]} 34. Rxa5 {[%clk 0:00:25.5]} 34...
e5 {[%clk 0:00:38.3]} 35. Ra6+ {[%clk 0:00:24.3]} 35... Kf5 {[%clk 0:00:38.3]}
36. a5 {[%clk 0:00:23.6]} 36... Ke4 {[%clk 0:00:37.7]} 37. Ra7 {[%clk
0:00:14.9]} 37... f5 {[%clk 0:00:30.3]} 38. a6 {[%clk 0:00:14.2]} 38... Kxe3
{[%clk 0:00:27.7]} 39. Re7 {[%clk 0:00:13.3]} 39... e4 {[%clk 0:00:27.5]} 40. a7
{[%clk 0:00:12.8]} 40... Ra1+ {[%clk 0:00:19.7]} 41. Bf1 {[%clk 0:00:12.4]}
41... f4 {[%clk 0:00:19.5]} 42. h4 {[%clk 0:00:11.6]} 42... f3 {[%clk
0:00:17.7]} 43. gxf3 {[%clk 0:00:11.2]} 43... Kxf3 {[%clk 0:00:18.6]} 44. Kh2
{[%clk 0:00:09.5]} 44... Ra2+ {[%clk 0:00:17.8]} 45. Kh3 {[%clk 0:00:09.5]}
45... Ra1 {[%clk 0:00:11.5]} 46. Bg2+ {[%clk 0:00:09.3]} 46... Kf4 {[%clk
0:00:11.6]} 47. Bxe4 {[%clk 0:00:07.6]} 47... Ra3+ {[%clk 0:00:07]} 48. Kh2
{[%clk 0:00:07]} 48... Ra2+ {[%clk 0:00:06.9]} 49. Bg2 {[%clk 0:00:07.1]} 49...
Kg4 {[%clk 0:00:01.9]} 50. a8=Q {[%clk 0:00:06.8]} 50... Rxa8 {[%clk 0:00:02.2]}
51. Bxa8 {[%clk 0:00:06.9]} 51... Kxh4 {[%clk 0:00:03.1]} 52. Rxh7+ {[%clk
0:00:06.5]} 52... Kg4 {[%clk 0:00:04]} 53. Rf7 {[%clk 0:00:05.6]} 53... Kg5
{[%clk 0:00:04.2]} 54. Kg3 {[%clk 0:00:05.5]} 54... Kg6 {[%clk 0:00:05.1]} 55.
Bd5 {[%clk 0:00:04.4]} 55... Kg5 {[%clk 0:00:05.1]} 56. Be4 {[%clk 0:00:03.9]}
56... Kh5 {[%clk 0:00:04.7]} 57. Rg7 {[%clk 0:00:03.8]} 57... Kh6 {[%clk
0:00:04.9]} 58. Rg8 {[%clk 0:00:03.4]} 58... Kh5 {[%clk 0:00:04.6]} 59. Bf5
{[%clk 0:00:03.6]} 59... Kh6 {[%clk 0:00:04.6]} 60. Kf4 {[%clk 0:00:03.8]} 60...
Kh5 {[%clk 0:00:04.9]} 61. Rh8# {[%clk 0:00:04.1]} 1-0